bitfinex-derivatives/quotes_ETHF0:USTF0_20251119
["timestamp","ask_amount","ask_price","bid_price","bid_amount"]
[1763527896830,0.9617,3062.3,3062.2,0.4221]
[1763527897028,0.96575875,3062.3,3062.2,0.42578287]
[1763527897328,0.00405875,3062.3,3062.2,0.42578287]
[1763527897527,0.43635875,3062.3,3062.2,0.42578287]
[1763527899126,3.64415875,3062.3,3062.2,0.00368287]
[1763527902322,3.21185875,3062.3,3062.2,0.42578287]
[1763527902528,0.00405875,3062.3,3062.2,0.42578287]
[1763527903128,0.43635875,3062.3,3062.2,0.42578287]
[1763527903626,0.00405875,3062.3,3062.2,0.42578287]
[1763527906431,0.00405875,3062.3,3062.2,0.95519287]
[1763527906629,0.00490268,3062.6,3062.5,1.21616]
[1763527906836,0.00490268,3062.6,3062.5,4.42396]
[1763527907332,0.4323,3063.2,3063.1,0.4221]
[1763527907533,4.1693,3063.5,3063.4,0.4221]
[1763527907732,4.17298997,3063.5,3063.4,0.4221]
[1763527908234,0.52926,3063.1,3063.0,0.2647]
[1763527908428,0.52924,3063.3,3063.0,0.2647]
[1763527908634,0.96154,3063.3,3063.2,0.4221]
[1763527909234,0.96156,3063.1,3063.0,0.6868]
[1763527909638,0.96156,3063.1,3063.0,0.4221]
[1763527909838,0.96154,3063.3,3063.2,0.4221]
[1763527910644,0.52924,3063.3,3063.2,0.4221]
[1763527910947,4.17298997,3063.5,3063.4,0.4221]
[1763527911348,0.52926,3063.2,3063.1,0.4221]
[1763527911748,3.21148997,3063.5,3063.1,0.4221]
[1763527912249,0.4323,3063.3,3063.2,0.4221]
[1763527912448,0.96152,3063.3,3063.2,0.4221]
[1763527914652,0.52922,3063.3,3063.2,0.4221]
[1763527915245,3.21148997,3063.5,3063.4,0.4221]
[1763527915446,0.00368997,3063.5,3063.4,3.6299]
[1763527916651,0.96517997,3063.5,3063.4,3.6299]
[1763527918349,0.96517997,3063.5,3063.4,3.2078]
[1763527919152,0.96517997,3063.5,3063.4,3.6534]
[1763527919551,0.96517997,3063.5,3063.4,0.4456]
[1763527922154,0.53287997,3063.5,3063.4,0.4456]
[1763527922453,0.00368997,3063.5,3063.4,0.97481]
[1763527923155,0.47118997,3063.5,3063.4,0.4456]
[1763527923452,0.00368997,3063.5,3063.4,0.4456]
[1763527924750,0.00490268,3063.8,3063.7,0.4456]
[1763527925754,0.2716,3065.0,3063.5,0.281]
[1763527925755,0.52905,3064.3,3064.2,0.4456]
[1763527926053,0.52903,3064.5,3064.4,0.4456]
[1763527926254,0.52901,3064.6,3064.5,0.7266]
[1763527926447,0.99651,3064.6,3064.5,0.7266]
[1763527926847,0.53262753,3064.6,3064.5,0.72911454]
[1763527927857,1.00012753,3064.6,3064.5,0.00251454]
[1763527928058,1.00012753,3064.6,3064.5,0.44811454]
[1763527928359,1.00012753,3064.6,3064.5,0.00251454]
[1763527928957,7.00012753,3064.6,3064.0,3.2078]
[1763527929259,0.99665,3063.7,3063.6,3.2078]
[1763527929460,0.99669,3063.5,3063.1,3.2078]
[1763527929655,1.26879,3063.5,3063.0,0.2647]
[1763527929850,1.26879,3063.5,3062.6,3.2078]
[1763527930052,0.99683,3062.7,3062.6,3.6534]
[1763527930252,0.99683,3062.7,3062.6,3.65617508]
[1763527931765,0.99683,3062.7,3062.6,0.00277508]
[1763527933768,4.20463,3062.7,3062.6,0.00277508]
[1763527933960,0.99697,3061.9,3061.8,0.4456]
[1763527934265,0.997,3061.7,3061.6,0.4456]
[1763527934865,1.00119745,3061.7,3061.6,0.44818968]
[1763527935268,1.00119745,3061.7,3061.6,0.00258968]
[1763527936664,4.20899745,3061.7,3061.6,0.00258968]
[1763527937368,4.20899745,3061.7,3061.6,0.44818968]
[1763527937958,4.20899745,3061.7,3061.6,0.00258968]
[1763527941768,4.20899745,3061.7,3061.6,0.44818968]
[1763527942871,4.20899745,3061.7,3061.6,0.00258968]
[1763527945270,4.20899745,3061.7,3061.6,0.42808968]
[1763527945463,3.21199745,3061.7,3061.6,0.95760968]
[1763527945662,3.60809745,3061.7,3061.6,0.42808968]
[1763527946270,3.21199745,3061.7,3061.6,0.42808968]
[1763527946475,0.00419745,3061.7,3061.6,0.95760968]
[1763527946771,3.6039,3062.6,3062.5,0.4255]
[1763527946967,3.73714,3062.6,3062.5,0.676]
[1763527947469,0.52939,3062.4,3062.1,2.22005564]
[1763527947675,0.52939,3062.4,3062.3,0.3972]
[1763527947878,0.53206338,3062.4,3062.3,0.3972]
[1763527948472,0.00267338,3062.4,3062.3,0.9266]
[1763527948685,0.00267338,3062.4,3062.3,0.3972]
[1763527948977,0.4208,3062.1,3062.0,0.6477]
[1763527949278,0.52943,3062.1,3062.0,0.6387]
[1763527949470,0.95023,3062.1,3062.0,0.6387]
[1763527949776,0.4208,3062.0,3061.9,3.2078]
[1763527949980,0.00267338,3062.4,3062.0,0.6387]
[1763527950284,0.52942,3062.2,3062.1,0.3972]
[1763527950576,0.53206338,3062.4,3062.3,0.3972]
[1763527950979,0.95286338,3062.4,3062.3,0.3972]
[1763527951481,0.00267338,3062.4,3062.3,0.3972]
[1763527951772,0.42347338,3062.4,3062.3,0.3972]
[1763527951977,0.5294,3062.3,3062.0,0.2415]
[1763527952577,0.95022,3062.2,3062.1,0.3972]
[1763527953280,0.53206338,3062.4,3062.1,0.3972]
[1763527953580,0.00267338,3062.4,3062.3,0.3972]
[1763527953875,0.6245,3062.0,3061.9,3.2078]
[1763527954082,0.4208,3061.7,3061.6,0.39978968]
[1763527954980,0.9503,3061.7,3061.6,0.39978968]
[1763527955683,0.42347338,3062.4,3062.3,0.3972]
[1763527955878,0.00267338,3062.4,3062.3,0.3972]
[1763527956184,0.53205338,3062.4,3062.3,0.3972]
[1763527956380,0.00267338,3062.4,3062.3,0.9266]
[1763527958485,0.42347338,3062.4,3062.3,0.3972]
[1763527959582,0.4208,3062.1,3062.0,3.8465]
[1763527959780,0.00267338,3062.4,3062.0,3.8465]
[1763527959970,0.42347338,3062.4,3062.3,0.3972]
[1763527960482,0.95285338,3062.4,3062.3,0.3972]
[1763527960683,0.53205338,3062.4,3062.3,0.3972]
[1763527961176,0.00267338,3062.4,3062.3,0.3972]
[1763527962484,0.00267338,3062.4,3062.3,0.9266]
[1763527964186,0.0048946,3063.0,3062.9,0.3972]
[1763527964381,0.0048946,3063.0,3062.9,3.605]
[1763527965382,0.00806924,3063.0,3062.9,3.605]
[1763527966989,0.00806924,3063.0,3062.9,4.13429]
[1763527967396,0.00806924,3063.0,3062.9,3.605]
[1763527967687,0.00806924,3063.0,3062.9,4.13429]
[1763527969585,3.4115,3064.0,3063.0,0.2415]
[1763527969884,0.52916,3063.7,3063.6,0.3972]
[1763527970084,0.94996,3063.7,3063.6,0.3972]
[1763527970480,0.4208,3063.9,3063.8,0.3972]
[1763527970683,0.42375472,3063.9,3063.8,0.40132104]
[1763527971088,0.95287472,3063.9,3063.8,0.40132104]
[1763527971293,0.95287472,3063.9,3063.8,0.00412104]
[1763527971883,0.95287472,3063.9,3063.8,0.40132104]
[1763527972979,0.53207472,3063.9,3063.8,0.93046104]
[1763527973690,0.53207472,3063.9,3063.8,0.40132104]
[1763527974790,0.95287472,3063.9,3063.8,0.40132104]
[1763527975687,0.95287472,3063.9,3063.8,0.00412104]
[1763527975890,0.95007,3063.1,3063.0,3.2078]
[1763527976091,0.95007,3063.1,3063.0,0.3972]
[1763527976392,0.95013,3062.7,3062.6,3.605]
[1763527976590,0.95013,3062.7,3062.6,3.2078]
[1763527976786,0.95013,3062.7,3062.6,3.60836955]
[1763527978498,0.52933,3062.7,3062.6,3.60836955]
[1763527978796,3.2078,3063.2,3062.7,0.3626]
[1763527978797,0.92352,3062.8,3062.7,0.3626]
[1763527979194,0.92353,3062.7,3062.6,0.00336955]
[1763527981890,0.52952,3061.6,3061.5,0.6041]
[1763527982103,0.92373,3061.5,3061.4,3.2078]
[1763527982892,0.92784031,3061.5,3061.4,3.21165792]
[1763527983193,0.39831031,3061.5,3061.4,3.21165792]
[1763527983393,0.00411031,3061.5,3061.4,3.57425792]
[1763527985992,0.00411031,3061.5,3061.4,4.10380792]
[1763527986585,0.00411031,3061.5,3061.4,3.57425792]
[1763527986789,0.92784031,3061.5,3061.4,3.57425792]
[1763527986991,0.00411031,3061.5,3061.4,4.10380792]
[1763527990801,3.2078,3062.1,3062.0,0.5898]
[1763527991190,4.13143,3062.1,3061.9,0.52946]
[1763527991394,3.602,3062.1,3062.0,0.3626]
[1763527991601,3.2078,3062.1,3062.0,0.5898]
[1763527991802,3.21018485,3062.1,3062.0,0.5898]
[1763527992300,3.21018485,3062.1,3062.0,1.11925]
[1763527995007,0.00238485,3062.1,3062.0,1.11925]
[1763527996597,0.0048946,3062.4,3062.3,0.892]
[1763527996897,0.0048946,3062.4,3062.3,4.0998]
[1763527997707,0.00803672,3062.4,3062.3,4.0998]
[1763528000809,0.40223672,3062.4,3062.3,4.0998]
[1763528001108,0.00803672,3062.4,3062.3,4.0998]
[1763528003613,0.93161672,3062.4,3062.3,3.2078]
[1763528003913,0.00803672,3062.4,3062.3,3.5689]
[1763528004411,0.00803672,3062.4,3062.3,4.0983]
[1763528006612,0.52927,3063.1,3063.0,0.5724]
[1763528007112,0.3468,3062.8,3062.7,3.2078]
[1763528007312,0.87611,3062.8,3062.7,3.2078]
[1763528007711,0.87910276,3062.8,3062.7,3.2078]
[1763528010817,0.87910276,3062.8,3062.4,0.0048946]
[1763528010818,0.3468,3062.5,3062.4,0.8953746]
[1763528011014,0.87616,3062.5,3062.4,0.0048946]
[1763528011214,1.08456,3062.5,3062.4,0.0048946]
[1763528012414,0.52936,3062.5,3062.4,0.3382946]
[1763528012614,0.86156,3062.5,3062.4,0.0048946]
[1763528012816,1.06996,3062.5,3062.4,0.0048946]
[1763528016619,0.86156,3062.5,3062.4,0.3382946]
[1763528017014,0.86156,3062.5,3062.4,0.0048946]
[1763528018726,1.06996,3062.5,3062.4,0.0048946]
[1763528019422,0.86172,3061.6,3061.5,0.5606]
[1763528019622,1.07013,3061.5,3061.4,3.21165792]
[1763528020121,0.86173,3061.5,3061.4,3.21165792]
[1763528020521,0.93483,3061.5,3061.4,0.00385792]
[1763528020723,4.14263,3061.5,3061.4,0.00385792]
[1763528021432,4.06953,3061.5,3061.4,0.00385792]
[1763528021630,4.14263,3061.5,3061.4,0.00385792]
[1763528022822,4.06953,3061.5,3061.4,0.33725792]
[1763528023028,3.73733,3061.5,3061.4,0.33725792]
[1763528023528,3.2078,3061.5,3061.4,0.86680792]
[1763528023733,0.52948,3061.8,3061.7,0.3334]
[1763528023937,0.86168,3061.8,3061.7,0.3334]
[1763528025733,0.52948,3061.8,3061.7,0.8629]
[1763528026123,0.52948,3061.8,3061.7,0.3334]
[1763528026326,0.86168,3061.8,3061.7,0.3334]
[1763528027233,3.54,3062.0,3061.9,0.3334]
[1763528027534,1.07013,3061.5,3061.4,0.00385792]
[1763528027831,0.52953,3061.5,3061.4,0.33725792]
[1763528028040,3.2809,3062.0,3061.5,0.2121]
[1763528028735,0.86172,3061.6,3061.5,0.5455]
[1763528029836,0.5295,3061.8,3061.5,1.07503]
[1763528030139,0.8617,3061.8,3061.7,0.3334]
[1763528030730,0.86172,3061.6,3061.5,0.5455]
[1763528030925,1.07013,3061.5,3061.4,0.00385792]
[1763528034235,0.52953,3061.5,3061.4,0.33725792]
[1763528036636,0.86171,3061.7,3061.6,0.3334]
[1763528037938,3.2078,3062.4,3061.7,0.2988]
[1763528038438,0.83928,3061.9,3061.8,0.2988]
[1763528039836,3.2078,3062.4,3061.6,0.2988]
[1763528039837,0.83931,3061.7,3061.6,0.2988]
[1763528040840,0.3098,3061.6,3061.5,1.04043]
[1763528041041,0.52951,3061.7,3061.5,1.04043]
[1763528041544,0.52948,3061.8,3061.7,0.2988]
[1763528042037,0.83933,3061.5,3061.4,0.00385792]
[1763528042740,0.83933,3061.5,3061.4,0.30265792]
[1763528042940,0.83933,3061.5,3061.4,0.00385792]
[1763528044140,3.5176,3062.0,3061.9,0.2988]
[1763528044334,0.3098,3061.8,3061.7,3.2078]
[1763528044530,0.3098,3061.5,3061.4,1.99408902]
[1763528044734,0.3098,3061.8,3061.7,0.2988]
[1763528044932,3.2078,3062.3,3061.6,0.82832]
[1763528045140,3.2078,3062.3,3061.8,0.2988]
[1763528045141,0.83928,3061.9,3061.8,0.2988]
[1763528046444,0.83932,3061.7,3061.6,0.2988]
[1763528046645,0.3098,3061.7,3061.6,0.2988]
[1763528046840,0.3098,3061.7,3061.6,0.82832]
[1763528047848,0.52948,3061.8,3061.7,0.2988]
[1763528048245,0.83928,3061.8,3061.7,0.2988]
[1763528048941,0.3098,3061.6,3061.4,0.00385792]
[1763528049149,1.02653,3061.5,3061.4,0.00385792]
[1763528051332,0.83933,3061.5,3061.4,0.00385792]
[1763528051540,0.83933,3061.5,3061.4,0.30265792]
[1763528052136,0.83933,3061.5,3061.4,0.00385792]
[1763528053043,0.83933,3061.5,3061.4,0.30265792]
[1763528053544,0.83933,3061.5,3061.4,0.00385792]
[1763528053745,1.02653,3061.5,3061.4,0.00385792]
[1763528054040,4.23433,3061.5,3061.4,0.00385792]
[1763528054243,0.3098,3060.5,3060.0,1.9035311]
[1763528054441,0.3098,3060.1,3060.0,0.5109]
[1763528054641,0.83958,3060.1,3060.0,0.5109]
[1763528054839,0.3098,3059.8,3059.7,3.5066]
[1763528055140,0.3131656,3059.8,3059.7,3.50920445]
[1763528055340,0.3131656,3059.8,3059.7,0.00260445]
[1763528055948,0.497,3059.5,3059.4,0.0048946]
[1763528056141,0.3098,3059.1,3059.0,0.1881]
[1763528056746,0.3098,3059.1,3059.0,0.4869]
[1763528057146,0.3098,3059.1,3059.0,0.48948975]
[1763528059147,3.2078,3059.5,3059.4,0.2988]
[1763528059845,0.3098,3059.3,3059.2,0.2988]
[1763528061050,3.2078,3059.5,3059.4,0.2988]
[1763528063648,3.5176,3059.5,3059.4,0.2988]
[1763528063854,0.2704,3059.2,3059.1,4.01745]
[1763528064153,0.2704,3059.2,3059.1,3.4875]
[1763528064754,0.2704,3059.2,3059.1,3.2078]
[1763528066950,0.2704,3059.2,3059.1,3.4875]
[1763528068053,0.5299,3059.4,3059.1,3.4875]
[1763528068256,0.81422,3059.3,3059.2,0.2696]
[1763528068461,0.2843,3059.2,3059.1,3.2078]
[1763528068656,0.2843,3059.2,3059.1,3.4774]
[1763528070960,0.2843,3059.2,3059.1,4.00735]
[1763528071773,0.2843,3059.2,3059.1,3.4774]
[1763528071961,0.81425,3059.1,3059.0,0.16218975]
[1763528072166,0.81425,3059.1,3059.0,0.00258975]
[1763528073473,0.52992,3059.3,3059.0,0.96175975]
[1763528074068,3.2078,3059.5,3059.4,0.2696]
[1763528074275,3.73768,3059.5,3059.4,0.2696]
[1763528074573,3.2078,3059.5,3059.4,0.2696]
[1763528075662,0.52995,3059.1,3059.0,0.16218975]
[1763528075973,0.2843,3059.1,3059.0,0.43178975]
[1763528076173,0.2843,3059.1,3059.0,0.96175975]
[1763528076376,0.81425,3059.1,3059.0,0.43178975]
[1763528076574,0.52993,3059.2,3059.1,0.2696]
[1763528076775,0.81423,3059.2,3059.1,0.2696]
[1763528077175,0.2843,3059.2,3059.1,0.2696]
[1763528077569,0.81423,3059.2,3059.1,0.2696]
[1763528077774,0.2843,3059.2,3059.1,0.2696]
[1763528078073,0.81423,3059.2,3059.1,0.2696]
[1763528078274,0.2843,3059.2,3059.1,0.2696]
[1763528078478,3.2078,3059.5,3059.4,0.2696]
[1763528079073,3.2078,3059.5,3059.4,0.7995]
[1763528080375,0.0033656,3059.8,3059.7,0.79945]
[1763528080577,3.2078,3060.6,3060.0,0.95899]
[1763528080779,0.52976,3060.2,3060.0,0.95899]
[1763528080971,0.52974,3060.3,3060.0,0.95899]
[1763528081171,3.2078,3060.6,3060.0,0.95899]
[1763528081172,0.52972,3060.4,3060.0,0.95899]
[1763528081477,0.52976,3060.3,3060.0,0.4292]
[1763528081665,0.00863086,3060.1,3060.0,0.95899]
[1763528082378,0.52971,3060.5,3060.0,0.1596]
[1763528082579,0.2843,3060.3,3060.2,0.79936]
[1763528082876,0.52971,3060.5,3060.4,0.2696]
[1763528083075,0.81401,3060.5,3060.4,0.2696]
[1763528083277,0.2843,3060.1,3060.0,0.4292]
[1763528083472,0.00283761,3060.5,3060.1,0.52978]
[1763528083671,0.28713761,3060.5,3060.4,0.2696]
[1763528084378,0.00283761,3060.5,3060.4,0.2696]
[1763528085074,0.2843,3060.1,3060.0,0.4292]
[1763528085572,0.16983761,3060.5,3060.1,0.52978]
[1763528085573,0.69954761,3060.5,3060.1,0.52978]
[1763528085776,0.81684761,3060.5,3060.4,0.2696]
[1763528086187,0.52974,3060.4,3060.0,0.68938]
[1763528086778,0.2843,3060.2,3060.1,0.79938]
[1763528086976,0.52974,3060.4,3060.1,0.79938]
[1763528087274,0.2843,3060.1,3060.0,0.4292]
[1763528087478,0.81684761,3060.5,3060.4,0.2696]
[1763528087680,0.2843,3060.2,3060.1,0.79937]
[1763528088374,0.53255761,3060.5,3060.2,0.52976]
[1763528088580,0.00283761,3060.5,3060.4,0.2696]
[1763528089184,0.81684761,3060.5,3060.4,0.2696]
[1763528089479,0.2843,3060.3,3060.2,0.2696]
[1763528089676,0.2843,3060.2,3060.1,0.2696]
[1763528089872,0.52974,3060.3,3060.2,0.2696]
[1763528090283,0.81403,3060.4,3060.3,0.2696]
[1763528090576,0.2843,3060.4,3060.3,0.79934]
[1763528090780,0.00283761,3060.5,3060.4,0.2696]
[1763528091281,0.00283761,3060.5,3060.4,0.79932]
[1763528092683,0.00490284,3060.8,3060.7,0.79927]
[1763528092882,0.00490284,3060.8,3060.7,4.00707]
[1763528093683,0.00770554,3060.8,3060.7,4.00707]
[1763528096074,0.00770554,3060.8,3060.7,3.4774]
[1763528096286,0.00770554,3060.8,3060.5,0.4292]
[1763528096581,0.29200554,3060.8,3060.7,0.2696]
[1763528097184,0.2843,3060.6,3060.5,0.4292]
[1763528098086,0.2843,3060.6,3060.5,0.95891]
[1763528098286,0.2843,3060.6,3060.5,0.4292]
[1763528098585,0.2661,3060.5,3060.4,0.26620284]
[1763528098883,0.53736554,3060.8,3060.7,0.2613]
[1763528099083,0.80346554,3060.8,3060.7,0.2613]
[1763528099392,0.79578,3060.7,3060.6,0.2613]
[1763528099888,0.00770554,3060.8,3060.7,0.2613]
[1763528100287,0.53736554,3060.8,3060.7,0.2613]
[1763528100677,0.00770554,3060.8,3060.7,0.79097]
[1763528102385,0.79581,3060.5,3060.4,0.00490284]
[1763528102888,0.5298,3060.0,3059.3,1.9797167]
[1763528103088,3.7376,3060.0,3059.3,1.9797167]
[1763528103386,3.7376,3060.0,3059.9,0.2613]
[1763528103587,3.2078,3060.0,3059.9,0.2613]
[1763528104388,3.73759,3060.0,3059.9,0.2613]
[1763528104588,4.00369,3060.0,3059.9,0.2613]
[1763528105683,0.52981,3059.9,3059.6,0.53476284]
[1763528105890,0.79595,3059.7,3059.6,0.26620284]
[1763528106189,0.79595,3059.7,3059.6,0.00490284]
[1763528106886,0.2661,3059.7,3059.6,0.00490284]
[1763528108287,0.2661,3059.7,3059.6,0.26620284]
[1763528110290,3.4739,3060.0,3059.9,0.2613]
[1763528110590,4.00369,3060.0,3059.9,0.2613]
[1763528110891,0.79587,3060.2,3060.1,0.2613]
[1763528111392,0.7959,3060.0,3059.9,0.2613]
[1763528111588,0.2661,3060.0,3059.9,0.2613]
[1763528111892,0.2661,3060.0,3059.6,0.00490284]
[1763528111893,0.79588,3060.1,3060.0,0.1507]
[1763528112892,0.2661,3060.1,3060.0,0.412]
[1763528113193,0.79588,3060.1,3060.0,0.412]
[1763528114086,0.79591,3059.9,3059.8,0.2613]
[1763528114694,0.2661,3059.9,3059.8,0.79113]
[1763528114887,4.00369,3060.1,3060.0,0.2613]
[1763528115094,0.2661,3059.7,3059.6,0.00490284]
[1763528115294,0.79595,3059.7,3059.6,0.00490284]
[1763528115492,0.79591,3059.9,3059.8,0.2613]
[1763528115996,0.79591,3059.9,3059.6,0.53476284]
[1763528116798,0.79594,3059.8,3059.7,0.2613]
[1763528118500,0.79595,3059.7,3059.6,0.00490284]
[1763528119004,0.79595,3059.7,3059.6,0.26620284]
[1763528119803,0.79595,3059.7,3059.6,0.00490284]
[1763528120700,0.2661,3059.7,3059.6,0.00490284]
[1763528121093,0.79595,3059.7,3059.6,0.00490284]
[1763528122598,4.00375,3059.7,3059.6,0.00490284]
[1763528123693,4.00375,3059.7,3059.6,2.84e-06]
[1763528123899,0.2401,3059.1,3059.0,0.00258975]
[1763528125194,0.2401,3059.1,3059.0,0.91665975]
[1763528125399,3.2078,3059.2,3059.1,0.243]
[1763528125599,3.4479,3059.2,3059.1,0.243]
[1763528126299,0.2401,3059.1,3059.0,0.14368975]
[1763528126498,0.2401,3059.1,3059.0,0.38668975]
[1763528127301,0.2401,3059.1,3059.0,0.00258975]
[1763528130101,0.77005,3059.1,3059.0,0.23498975]
[1763528130304,0.77005,3059.1,3059.0,0.38148975]
[1763528130797,0.2401,3059.1,3059.0,0.38148975]
[1763528131102,0.2357,3059.1,3059.0,0.38148975]
[1763528131706,3.97341,3059.3,3059.2,0.2324]
[1763528131909,0.76561,3059.3,3059.2,0.2324]
[1763528132609,0.2357,3059.3,3059.2,0.2324]
[1763528133010,0.1569,3060.0,3059.2,0.2324]
[1763528133405,0.7656,3059.4,3059.3,0.2324]
[1763528133601,0.2357,3059.4,3059.3,0.2324]
[1763528134504,0.52986,3059.7,3059.3,0.2324]
[1763528134710,0.1569,3060.0,3059.3,0.2324]
[1763528134911,0.52986,3059.6,3059.3,0.76231]
[1763528135710,0.1569,3060.0,3059.3,0.76231]
[1763528135911,0.76558,3059.5,3059.4,0.2324]
[1763528136113,0.76556,3059.7,3059.6,0.2324]
[1763528137915,0.76556,3059.6,3059.5,0.3789]
[1763528139909,0.2357,3059.6,3059.5,0.90878]
[1763528140717,0.76556,3059.6,3059.5,0.90878]
[1763528141016,0.76556,3059.6,3059.5,0.3789]
[1763528141210,0.7656,3059.4,3059.3,0.2324]
[1763528141512,0.2357,3059.4,3059.3,0.76231]
[1763528143416,0.2357,3059.6,3059.5,0.3789]
[1763528143620,0.76556,3059.6,3059.5,0.3789]
[1763528145214,0.76563,3059.2,3059.1,2.2121167]
[1763528145414,3.97343,3059.3,3059.2,0.2324]
[1763528145717,0.52993,3059.3,3059.2,0.2324]
[1763528146020,0.76563,3059.3,3059.2,0.2324]
[1763528146218,3.97343,3059.3,3059.2,0.2324]
[1763528146415,0.76565,3059.1,3059.0,0.00258975]
[1763528150814,0.76565,3059.1,3059.0,1.1530225]
[1763528151422,0.76565,3059.1,3059.0,0.00258975]
[1763528151628,0.7657,3058.8,3058.7,0.00329029]
[1763528151826,3.9735,3058.8,3058.7,0.00329029]
[1763528152626,3.9735,3058.8,3058.7,0.00679732]
[1763528159930,0.53,3058.8,3058.7,0.24959732]
[1763528160128,0.24420284,3059.1,3059.0,0.3838]
[1763528160324,0.77415284,3059.1,3059.0,1.53423275]
[1763528160635,0.77415284,3059.1,3059.0,1.15043275]
[1763528160835,0.00490284,3059.1,3059.0,1.53423275]
[1763528161037,0.24420284,3059.1,3059.0,1.53423275]
[1763528161334,0.24420284,3059.1,3059.0,0.52997]
[1763528161538,0.77415284,3059.1,3059.0,1.53423275]
[1763528163737,0.00490284,3059.1,3059.0,2.06420275]
[1763528163942,0.00490284,3059.1,3059.0,6.4224355]
[1763528164433,0.00490284,3059.1,3059.0,5.27200275]
[1763528164640,0.77415284,3059.1,3059.0,1.15043275]
[1763528166646,0.7693,3058.8,3058.7,0.00679732]
[1763528166951,3.9771,3058.8,3058.7,0.00679732]
[1763528169850,3.4471,3058.8,3058.7,0.24959732]
[1763528170044,0.2393,3058.8,3058.7,1.93005007]
[1763528170656,3.73777,3059.0,3058.9,0.77278]
[1763528171051,3.97707,3059.0,3058.9,0.2428]
[1763528171353,0.7693,3058.8,3058.7,1.93005007]
[1763528172059,0.7693,3058.8,3058.7,1.40003007]
[1763528172353,0.2393,3058.8,3058.7,1.40003007]
[1763528172558,0.7693,3058.8,3058.7,1.40003007]
[1763528173155,0.7693,3058.8,3058.7,1.15723007]
[1763528173754,0.53011,3058.2,3058.1,0.2428]
[1763528173955,0.53011,3058.2,3058.1,1.39323275]
[1763528174761,0.53316963,3058.2,3058.1,1.39716793]
[1763528175064,0.00305963,3058.2,3058.1,1.39716793]
[1763528176369,0.00305963,3058.2,3058.1,1.92728793]
[1763528177761,0.00305963,3058.2,3058.1,1.39716793]
[1763528178065,0.00305963,3058.2,3058.1,1.92728793]
[1763528179472,0.00305963,3058.2,3058.1,1.39716793]
[1763528180169,0.00305963,3058.2,3058.1,1.92728793]
[1763528181066,0.77246963,3058.2,3058.1,1.39716793]
[1763528181266,0.77246963,3058.2,3058.1,0.24673518]
[1763528181657,0.76951,3057.6,3057.5,0.1465]
[1763528181858,0.2393,3057.3,3057.2,1.39323275]
[1763528182061,0.76956,3057.3,3057.2,1.39323275]
[1763528182370,0.76956,3057.3,3057.2,1.15043275]
[1763528182670,0.76956,3057.3,3057.2,1.15324455]
[1763528182857,0.76956,3057.3,3057.2,0.0028118]
[1763528184174,3.21270284,3057.6,3057.5,0.3683]
[1763528184369,0.00490284,3057.6,3057.5,0.89853]
[1763528184563,0.00305963,3058.2,3058.1,0.2268]
[1763528184768,0.00305963,3058.2,3058.1,5.13134888]
[1763528185271,0.22865963,3058.2,3058.1,3.2078]
[1763528186265,0.00305963,3058.2,3058.1,3.4346]
[1763528188173,0.22865963,3058.2,3058.1,3.4346]
[1763528188570,0.00305963,3058.2,3058.1,3.4346]
[1763528190368,0.53316963,3058.2,3058.1,3.4346]
[1763528190668,0.77056963,3058.2,3058.1,3.2078]
[1763528191668,0.24045963,3058.2,3058.1,3.2078]
[1763528191875,0.24045963,3058.2,3058.1,3.446]
[1763528192173,0.77056963,3058.2,3058.1,3.446]
[1763528193278,0.00305963,3058.2,3058.1,3.97612]
[1763528193472,0.53316963,3058.2,3058.1,3.97612]
[1763528193666,0.53316963,3058.2,3058.1,3.446]
[1763528193975,0.00305963,3058.2,3058.1,3.97612]
[1763528194175,0.00305963,3058.2,3058.1,5.67286888]
[1763528197279,0.77056963,3058.2,3058.1,3.446]
[1763528197474,0.53316963,3058.2,3058.1,3.446]
[1763528197774,0.00305963,3058.2,3058.1,3.97612]
[1763528199172,0.00305963,3058.2,3058.1,3.446]
[1763528199374,0.00305963,3058.2,3058.1,3.97612]
[1763528200578,0.77056963,3058.2,3058.1,3.446]
[1763528201282,0.53316963,3058.2,3058.1,3.446]
[1763528201780,0.53316963,3058.2,3058.1,3.97612]
[1763528202081,0.77056963,3058.2,3058.1,3.446]
[1763528202378,0.76756,3057.9,3057.8,0.00490284]
[1763528202775,0.76756,3057.9,3057.0,0.1415]
[1763528202776,0.2374,3057.3,3057.0,0.1415]
[1763528203574,0.76766,3057.3,3057.0,0.1415]
[1763528204884,0.76766,3057.3,3057.0,0.67181]
[1763528205084,0.76766,3057.3,3057.2,0.2410118]
[1763528205783,0.2374,3057.3,3057.2,0.2410118]
[1763528206282,0.2374,3057.6,3057.5,0.3741]
[1763528206584,0.53019,3057.7,3057.6,0.2382]
[1763528206783,0.2374,3057.6,3057.5,0.1359]
[1763528207084,0.76765,3057.4,3057.3,0.2382]
[1763528207385,0.2374,3057.3,3057.2,0.2410118]
[1763528207684,0.76765,3057.4,3057.3,0.2382]
[1763528208687,0.2374,3057.4,3057.3,0.2382]
[1763528209790,0.76764,3057.4,3057.3,0.2382]
[1763528209990,3.73803,3057.5,3057.4,0.2382]
[1763528210591,0.76763,3057.5,3057.4,0.2382]
[1763528210785,0.5302,3057.7,3057.6,0.2382]
[1763528211291,3.2078,3058.0,3057.9,0.2382]
[1763528211494,3.73794,3058.0,3057.9,0.2382]
[1763528211993,0.76753,3058.1,3058.0,0.3741]
[1763528212687,0.53019,3057.8,3057.7,0.2382]
[1763528212992,0.76756,3057.9,3057.8,0.2382]
[1763528213591,0.00305963,3058.2,3058.1,0.53012]
[1763528213786,0.00305963,3058.2,3058.1,0.2382]
[1763528213986,0.76752,3058.1,3058.0,0.66603]
[1763528214491,0.76752,3058.1,3058.0,0.90423]
[1763528214796,0.53316963,3058.2,3058.1,0.2382]
[1763528215295,0.00305963,3058.2,3058.1,0.76832]
[1763528215992,0.53316963,3058.2,3058.1,0.2382]
[1763528216595,0.76752,3058.1,3058.0,3.5819]